Workbook

Sheet Heligman-Pollard
B6: ex
C7: 0 | D7: =SUM(L12:L112) -> 56.86232859
C8: 1 | D8: =SUM(L16:L116) -> 56.86232867
C9: ="e0= "&ROUND(SUM(L16:L116),2) -> e0= 56.86
C15: ABC | D15: DEF | E15: GH | F15: Sum | G15: qx(1) | H15: qx(2) | I15: qx(3) | J15: qx | K15: lx | L15: Lx
A16: 0 | C16: =$X$20^(($AA$20+$A16)^$AD$20) -> 0.02796251971 | E16: =$AD$23*$AG$23^$A16 -> 0.00015 | F16: =C16+D16+E16 -> 0.02811251971 | G16: =1-(1+C16)^-1 -> 0.02720188642 | H16: =1-(1+D16)^-1 -> 0 | I16: =1-(1+E16)^-1 -> 0.0001499775034 | J16: =1-(1+F16)^-1 -> 0.02734381614 | K16: 1 | L16: =K17+IF(J16<0.02,0.1,0.3)*(K16-K17) -> 0.9808593287
A17: 1 | C17: 0.002474247404 | D17: =$AG$20*EXP(-$X$23*(LN($A17)-LN($AA$23))^2) -> 2.645845861e-42 | E17: 0.00016575 | F17: =C17+D17+E17 -> 0.002639997404 | G17: =1-(1+C17)^-1 -> 0.002468140614 | H17: 0 | I17: 0.0001657225315 | J17: 0.002633046169 | K17: =K16*(1-J16) -> 0.9726561839 | L17: 0.9703512401
A18: 2 | C18: 0.00120077005 | D18: 2.355532381e-26 | E18: 0.00018315375 | F18: 0.0013839238 | G18: 0.001199329931 | H18: 0 | I18: 0.0001831202108 | J18: 0.001382011202 | K18: 0.9700951352 | L18: 0.9688885211
A19: 3 | C19: 0.0007505656917 | D19: 5.853324844e-19 | E19: 0.0002023848937 | F19: 0.0009529505855 | G19: 0.0007500027654 | H19: 0 | I19: 0.0002023439424 | J19: 0.0009520433352 | K19: 0.9687544529 | L19: 0.9679243863
A20: 4 | C20: 0.000526099919 | D20: 1.407510886e-14 | E20: 0.0002236353076 | F20: 0.0007497352266 | G20: 0.0005258232834 | H20: 1.398881011e-14 | I20: 0.000223585306 | J20: 0.0007491735448 | K20: 0.9678321567 | L20: 0.9671795898 | V20: A | W20: 2600 | X20: =W20/1000000 -> 0.0026 | Y20: B | Z20: 5000 | AA20: =Z20/100000 -> 0.05 | AB20: C | AC20: 17 | AD20: =AC20/100 -> 0.17 | AE20: D | AF20: 250 | AG20: =AF20/100000 -> 0.0025
A21: 5 | C21: 0.0003942081479 | D21: 1.126202011e-11 | E21: 0.0002471170149 | F21: 0.0006413251741 | G21: 0.0003940528091 | H21: 1.126210236e-11 | I21: 0.0002470559632 | J21: 0.0006409141397 | K21: 0.9671070824 | L21: 0.9665492331
A22: 6 | C22: 0.0003087057859 | D22: 1.266549349e-09 | E22: 0.0002730643015 | F22: 0.0005817713539 | G22: 0.0003086105161 | H22: 1.26654931e-09 | I22: 0.0002729897577 | J22: 0.0005814330928 | K22: 0.9664872498 | L22: 0.9659814969
A23: 7 | C23: 0.0002494932475 | D23: 4.087572471e-08 | E23: 0.0003017360531 | F23: 0.0005512701763 | G23: 0.0002494310161 | H23: 4.087572314e-08 | I23: 0.0003016450359 | J23: 0.0005509664449 | K23: 0.9659253021 | L23: 0.9654463289 | V23: E | W23: 10 | X23: =$W$23 -> 10 | Y23: F | Z23: 20 | AA23: =$Z$23 -> 20 | AB23: G | AC23: 150 | AD23: =$AC$23/1000000 -> 0.00015 | AE23: H | AF23: 105 | AG23: =1+AF23/1000 -> 1.105
A24: 8 | C24: 0.0002064862389 | D24: 5.644852402e-07 | E24: 0.0003334183387 | F24: 0.0005404690628 | G24: 0.0002064436111 | H24: 5.644849217e-07 | I24: 0.0003333072079 | J24: 0.0005401771138 | K24: 0.9653931097 | L24: 0.9649237748 | W24: 20
A25: 9 | C25: 0.0001741010078 | D25: 4.254173928e-06 | E25: 0.0003684272642 | F25: 0.0005467824459 | G25: 0.0001740707019 | H25: 4.25415583e-06 | I25: 0.0003682915756 | J25: 0.0005464836383 | K25: 0.9648716264 | L25: 0.9643970685
A26: 10 | C26: 0.0001490122987 | D26: 2.048137367e-05 | E26: 0.000407112127 | F26: 0.0005766057993 | G26: 0.0001489900973 | H26: 2.048095419e-05 | I26: 0.0004069464542 | J26: 0.0005762735167 | K26: 0.9643443399 | L26: 0.9638441864
A27: 11 | C27: 0.0001291254705 | D27: 7.010227283e-05 | E27: 0.0004498589003 | F27: 0.0006490866436 | G27: 0.0001291087992 | H27: 7.009735884e-05 | I27: 0.0004496566183 | J27: 0.0006486656034 | K27: 0.9637886138 | L27: 0.9632259549
A28: 12 | C28: 0.00011306072 | D28: 0.000183941511 | E28: 0.0004970940849 | F28: 0.0007940963158 | G28: 0.0001130479387 | H28: 0.0001839076827 | I28: 0.0004968471051 | J28: 0.0007934662272 | K28: 0.9631634373 | L28: 0.9624756234
A29: 13 | C29: 9.987532468e-05 | D29: 0.0003908433354 | E29: 0.0005492889638 | F29: 0.001040007624 | G29: 9.986535059e-05 | H29: 0.0003906906365 | I29: 0.000548987411 | J29: 0.001038927132 | K29: 0.9623991996 | L29: 0.9614993232
A30: 14 | C30: 8.890529831e-05 | D30: 0.0007005570852 | E30: 0.000606964305 | F30: 0.001396426688 | G30: 8.889739486e-05 | H30: 0.0007000666485 | I30: 0.0006065961228 | J30: 0.0013944794 | K30: 0.961399337 | L30: 0.9601927505
A31: 15 | C31: 7.967078054e-05 | D31: 0.001092732001 | E31: 0.000670695557 | F31: 0.001843098339 | G31: 7.966443361e-05 | H31: 0.001091539242 | I31: 0.000670246026 | J31: 0.001839707577 | K31: 0.9600586854 | L31: 0.9584690809
A32: 16 | C32: 7.181723315e-05 | D32: 0.00151946802 | E32: 0.0007411185905 | F32: 0.002332403844 | G32: 7.181207581e-05 | H32: 0.00151716274 | I32: 0.0007405697405 | J32: 0.002326976395 | K32: 0.9582924582 | L32: 0.9562855266
A33: 17 | C33: 6.507764084e-05 | D33: 0.001919695745 | E33: 0.0008189360425 | F33: 0.002803709428 | G33: 6.507340602e-05 | H33: 0.001916017574 | I33: 0.000818265935 | J33: 0.00279587062 | K33: 0.9560625342 | L33: 0.9536568098
A34: 18 | C34: 5.924749798e-05 | D34: 0.002237328118 | E34: 0.0009049243269 | F34: 0.003201499943 | G34: 5.924398792e-05 | H34: 0.002232333655 | I34: 0.0009041061793 | J34: 0.00319128305 | K34: 0.9533895071 | L34: 0.9506512249
A35: 19 | C35: 5.416783147e-05 | D35: 0.002435082681 | E35: 0.0009999413813 | F35: 0.003489191894 | G35: 5.416489747e-05 | H35: 0.002429167458 | I35: 0.0009989424973 | J35: 0.003477059765 | K35: 0.9503469713 | L35: 0.9473729994
A36: 20 | C36: 4.971341791e-05 | D36: 0.0025 | E36: 0.001104935226 | F36: 0.003654648644 | G36: 4.971094661e-05 | H36: 0.002493765586 | I36: 0.001103715692 | J36: 0.003641340823 | K36: 0.9470425581 | L36: 0.9439389038
A37: 21 | C37: 4.578444218e-05 | D37: 0.002441190745 | E37: 0.001220953425 | F37: 0.003707928613 | G37: 4.578234606e-05 | H37: 0.002435245846 | I37: 0.001219464516 | J37: 0.003694230669 | K37: 0.9435940534 | L37: 0.9404567847
A38: 22 | C38: 4.230048678e-05 | D38: 0.00228290882 | E38: 0.001349153535 | F38: 0.003674362842 | G38: 4.229869752e-05 | H38: 0.002277709018 | I38: 0.001347335772 | J38: 0.003660911325 | K38: 0.9401081993 | L38: 0.9370107118
A39: 23 | C39: 3.919613113e-05 | D39: 0.002056399682 | E39: 0.001490814656 | F39: 0.003586410469 | G39: 3.919459485e-05 | H39: 0.00205217958 | I39: 0.001488595436 | J39: 0.003573594094 | K39: 0.9366665465 | L39: 0.9336540071
A40: 24 | C40: 3.641768284e-05 | D40: 0.001792980343 | E40: 0.001647350195 | F40: 0.00347674822 | G40: 3.641635664e-05 | H40: 0.001789771318 | I40: 0.001644640895 | J40: 0.003464702323 | K40: 0.9333192805 | L40: 0.9304089743
A41: 25 | C41: 3.392071778e-05 | D41: 0.00151946802 | E41: 0.001820321965 | F41: 0.003373710703 | G41: 3.391956721e-05 | H41: 0.00151716274 | I41: 0.001817014414 | J41: 0.003362367049 | K41: 0.930085607 | L41: 0.9272710467
A42: 26 | C42: 3.166820648e-05 | D42: 0.001256010791 | E42: 0.002011455771 | F42: 0.003299134768 | G42: 3.166720363e-05 | H42: 0.001254435206 | I42: 0.002007417939 | J42: 0.003288286269 | K42: 0.9269583178 | L42: 0.9242150239
A43: 27 | C43: 2.962907143e-05 | D43: 0.001015786377 | E43: 0.002222658627 | F43: 0.003268074075 | G43: 2.962819357e-05 | H43: 0.001014755602 | I43: 0.002217729372 | J43: 0.003257428558 | K43: 0.9239102135 | L43: 0.9212015991
A44: 28 | C44: 2.777706493e-05 | D44: 0.0008058602583 | E44: 0.002456037783 | F44: 0.003289675107 | G44: 2.777629339e-05 | H44: 0.0008052113705 | I44: 0.002450020441 | J44: 0.003278888628 | K44: 0.920900642 | L44: 0.9181830644
A45: 29 | C45: 2.608988802e-05 | D45: 0.0006285724188 | E45: 0.002713921751 | F45: 0.003368584057 | G45: 2.608920736e-05 | H45: 0.0006281775637 | I45: 0.002706576314 | J45: 0.003357274795 | K45: 0.9178811113 | L45: 0.9151076901
A46: 30 | C46: 2.454849272e-05 | D46: 0.0004830047422 | E46: 0.002998883534 | F46: 0.003506436769 | G46: 2.454789011e-05 | H46: 0.0004827715613 | I46: 0.002989917121 | J46: 0.003494184632 | K46: 0.9147995322 | L46: 0.9119227016
A47: 31 | C47: 2.313652503e-05 | D47: 0.0003662705127 | E47: 0.003313766306 | F47: 0.003703173343 | G47: 2.313598974e-05 | H47: 0.0003661364077 | I47: 0.003302821527 | J47: 0.003689510446 | K47: 0.9116030537 | L47: 0.9085760216
A48: 32 | C48: =$X$20^(($AA$20+$A48)^$AD$20) -> 2.183987693e-05 | D48: 0.0002745166448 | E48: =$AD$23*$AG$23^$A48 -> 0.003661711768 | F48: 0.003958068289 | G48: 2.183939996e-05 | H48: 0.0002744413061 | I48: 0.003648352552 | J48: 0.003942463749 | K48: 0.9082396848 | L48: =K49+IF(J48<0.02,0.1,0.3)*(K48-K49) -> 0.9050170529
A49: 33 | C49: 2.06463235e-05 | D49: =$AG$20*EXP(-$X$23*(LN($A49)-LN($AA$23))^2) -> 0.0002036264364 | E49: 0.004046191503 | F49: 0.004270464263 | G49: 2.064589723e-05 | H49: 0.0002035849811 | I49: 0.004029885813 | J49: 0.004252304947 | K49: =K48*(1-J48) -> 0.9046589827 | L49: 0.9011967854
A50: 34 | C50: 1.954522711e-05 | D50: 0.0001496624766 | E50: 0.004471041611 | F50: 0.004640249315 | G50: 1.95448451e-05 | H50: 0.0001496400811 | I50: 0.004451140377 | J50: 0.004618816853 | K50: 0.9008120969 | L50: 0.8970674794
A51: 35 | C51: 1.852729477e-05 | D51: 0.0001091090357 | E51: 0.00494050098 | F51: 0.005068137311 | G51: 1.852695152e-05 | H51: 0.0001090971322 | I51: 0.004916212428 | J51: 0.005042580819 | K51: 0.8966514108 | L51: 0.8925821173
A52: 36 | C52: 1.758437793e-05 | D52: 7.897365979e-05 | E52: 0.005459253583 | F52: 0.005555811621 | G52: 1.758406872e-05 | H52: 7.896742344e-05 | I52: 0.005429611955 | J52: 0.005525115122 | K52: 0.8921299736 | L52: 0.8876937648
A53: 37 | C53: 1.670930641e-05 | D53: 5.679863566e-05 | E53: 0.006032475209 | F53: 0.006105983151 | G53: 1.670902721e-05 | H53: 5.679540976e-05 | I53: 0.005996302662 | J53: 0.006068926389 | K53: 0.8872008527 | L53: 0.8823549317
A54: 38 | C54: 1.589574997e-05 | D54: 4.062086695e-05 | E54: 0.006665885106 | F54: 0.006722401723 | G54: 1.58954973e-05 | H54: 4.061921696e-05 | I54: 0.006621745313 | J54: 0.0066775128 | K54: 0.8818164961 | L54: 0.8765169892
A55: 39 | C55: 1.513810232e-05 | D55: 2.890704399e-05 | E55: 0.007365803042 | F55: 0.007409848189 | G55: 1.513787316e-05 | H55: 2.89062084e-05 | I55: 0.007311944698 | J55: 0.00735534619 | K55: 0.8759281551 | L55: 0.8701296758
A56: 40 | C56: 1.443138345e-05 | D56: 2.048137367e-05 | E56: 0.008139212362 | F56: 0.008174125119 | G56: 1.443117519e-05 | H56: 2.048095419e-05 | I56: 0.008073500427 | J56: 0.008107850534 | K56: 0.8694854003 | L56: 0.8631407084
A57: 41 | C57: 1.377115715e-05 | D57: 1.445595333e-05 | E57: 0.00899382966 | F57: 0.00902205677 | G57: 1.377096751e-05 | H57: 1.445574435e-05 | I57: 0.008913661705 | J57: 0.008941387069 | K57: 0.8624357427 | L57: 0.855495508
A58: 42 | C58: 1.315346092e-05 | D58: 1.016891762e-05 | E58: 0.009938181774 | F58: 0.009961504153 | G58: 1.315328791e-05 | H58: 1.016881422e-05 | I58: 0.009840386227 | J58: 0.009863251334 | K58: 0.8547243709 | L58: 0.8471370457
A59: 43 | C59: 1.257474631e-05 | D59: 7.132314795e-06 | E59: 0.01098169086 | F59: 0.01100139792 | G59: 1.257458819e-05 | H59: 7.132263925e-06 | I59: 0.01086240331 | J59: 0.01088168418 | K59: 0.8462940096 | L59: 0.8380058158
A60: 44 | C60: 1.203182783e-05 | D60: 4.989800454e-06 | E60: 0.0121347684 | F60: 0.01215179003 | G60: 1.203168307e-05 | H60: 4.989775556e-06 | I60: 0.01198928125 | J60: 0.01200589689 | K60: 0.8370849054 | L60: 0.8280399459
A61: 45 | C61: 1.152183915e-05 | D61: 3.483257277e-06 | E61: 0.01340891908 | F61: 0.01342392418 | G61: 1.15217064e-05 | H61: 3.483245144e-06 | I61: 0.01323149898 | J61: 0.01324610941 | K61: 0.8270349504 | L61: 0.8171754545
A62: 46 | C62: 1.104219532e-05 | D62: 2.427034011e-06 | E62: 0.01481685559 | F62: 0.01483032482 | G62: 1.104207339e-05 | H62: 2.42702812e-06 | I62: 0.01460052176 | J62: 0.01461360038 | K62: 0.8160799549 | L62: 0.8053466752
A63: 47 | C63: 1.059056019e-05 | D63: 1.688415442e-06 | E63: 0.01637262542 | F63: 0.0163849044 | G63: 1.059044803e-05 | H63: 1.688412592e-06 | I63: 0.01610888075 | J63: 0.01612076717 | K63: 0.8041540886 | L63: 0.7924868658
A64: 48 | C64: 1.016481809e-05 | D64: 1.173030898e-06 | E64: 0.01809175109 | F64: 0.01810308894 | G64: 1.016471477e-05 | H64: 1.173029522e-06 | I64: 0.01777025604 | J64: 0.0177811944 | K64: 0.7911905078 | L64: 0.7785290268
A65: 49 | C65: 9.763049293e-06 | D65: 8.140842096e-07 | E65: 0.01999138496 | F65: 0.02000196209 | G65: 9.762953977e-06 | H65: 8.140835469e-07 | I65: 0.01959956256 | J65: 0.01960972903 | K65: 0.7771221955 | L65: 0.7634069554
A66: 50 | C66: 9.383508543e-06 | D66: 5.644852402e-07 | E66: 0.02209048038 | F66: 0.02210042837 | G66: 9.383420494e-06 | H66: 5.644849217e-07 | I66: 0.02161303799 | J66: 0.02162256052 | K66: 0.7618830398 | L66: 0.7503513364
A67: 51 | C67: 9.024606351e-06 | D67: 3.911509391e-07 | E67: 0.02440998082 | F67: 0.02441939658 | G67: 9.024524908e-06 | H67: 3.911507862e-07 | I67: 0.0238283317 | J67: 0.023837304 | K67: 0.7454091777 | L67: 0.7329711961
A68: 52 | C68: 8.684892556e-06 | D68: 2.709082152e-07 | E68: 0.0269730288 | F68: 0.0269819846 | G68: 8.68481713e-06 | H68: 2.709081418e-07 | I68: 0.02626459318 | J68: 0.02627308464 | K68: 0.7276406325 | L68: 0.7142584778
A69: 53 | C69: 8.363041902e-06 | D69: 1.87567048e-07 | E69: 0.02980519683 | F69: 0.02981374744 | G69: 8.362971962e-06 | H69: 1.875670127e-07 | I69: 0.02894255818 | J69: 0.02895062094 | K69: 0.7085232686 | L69: 0.6941647366
A70: 54 | C70: 8.05784132e-06 | D70: 1.298409765e-07 | E70: 0.03293474249 | F70: 0.03294293018 | G70: 8.057776392e-06 | H70: 1.298409595e-07 | I70: 0.0318846304 | J70: 0.03189230423 | K70: 0.68801108 | L70: 0.672651499
A71: 55 | C71: 7.768178711e-06 | D71: 8.987656642e-08 | E71: 0.03639289046 | F71: 0.03640074851 | G71: 7.768118367e-06 | H71: 8.987655831e-08 | I71: 0.03511495572 | J71: 0.03512227154 | K71: 0.6660688214 | L71: 0.6496931264
A72: 56 | C72: 7.493033011e-06 | D72: 6.221772005e-08 | E72: 0.04021414395 | F72: 0.04022169921 | G72: 7.492976866e-06 | H72: 6.22177162e-08 | I72: 0.03865948583 | J72: 0.03866646815 | K72: 0.6426749714 | L72: 0.6252799914
A73: 57 | C73: 7.231465386e-06 | D73: 4.307877998e-08 | E73: 0.04443662907 | F73: 0.04444390361 | G73: 7.231413092e-06 | H73: 4.307877799e-08 | I73: 0.04254602705 | J73: 0.04255269571 | K73: 0.617825 | L73: 0.5994219166
A74: 58 | C74: 6.982611404e-06 | D74: 2.983588176e-08 | E74: 0.04910247512 | F74: 0.04910948757 | G74: 6.982562647e-06 | H74: 2.983588088e-08 | I74: 0.04680426964 | J74: 0.04681064098 | K74: 0.5915348808 | L74: 0.572151792
A75: 59 | C75: 6.745674066e-06 | D75: 2.067193584e-08 | E75: 0.05425823501 | F75: 0.05426500136 | G75: 6.745628562e-06 | H75: 2.06719355e-08 | I75: 0.05146579197 | J75: 0.05147187973 | K75: 0.5638447539 | L75: 0.5435292493
A76: 60 | C76: 6.51991759e-06 | D76: 1.43293758e-08 | E76: 0.05995534969 | F76: 0.05996188393 | G76: 6.519875081e-06 | H76: 1.432937546e-08 | I76: 0.05656403329 | J76: 0.0565698492 | K76: 0.5348226045 | L76: 0.5136442207
A77: 61 | C77: 6.304661851e-06 | D77: 9.938276532e-09 | E77: 0.0662506614 | F77: 0.066256976 | G77: 6.304622103e-06 | H77: 9.938276313e-09 | I77: 0.06213422772 | J77: 0.06213978196 | K77: 0.5045677704 | L77: 0.4826201586
A78: 62 | C78: 6.099277409e-06 | D78: 6.897050876e-09 | E78: 0.07320698085 | F78: 0.07321308703 | G78: 6.099240208e-06 | H78: 6.89705093e-09 | I78: 0.06821329171 | J78: 0.06821859322 | K78: 0.4732140392 | L78: 0.450616642
A79: 63 | C79: 5.903181037e-06 | D79: 4.789746092e-09 | E79: 0.08089371384 | F79: 0.08089962181 | G79: 5.90314619e-06 | H79: 4.789746155e-09 | I79: 0.07483965611 | J79: 0.07484471285 | K79: 0.4409320431 | L79: 0.4178310406
A80: 64 | C80: =$X$20^(($AA$20+$A80)^$AD$20) -> 5.715831717e-06 | D80: 3.328771198e-09 | E80: =$AD$23*$AG$23^$A80 -> 0.08938755379 | F80: 0.08939327295 | G80: 5.715799047e-06 | H80: 3.328771259e-09 | I80: 0.08205303382 | J80: =1-(1+F80)^-1 -> 0.08205785291 | K80: 0.407930611 | L80: =K81+IF(J80<0.02,0.1,0.3)*(K80-K81) -> 0.3844988739
A81: 65 | C81: 5.536727026e-06 | D81: =$AG$20*EXP(-$X$23*(LN($A81)-LN($AA$23))^2) -> 2.315267626e-09 | E81: 0.09877324694 | F81: =C81+D81+E81 -> 0.09877878598 | G81: =1-(1+C81)^-1 -> 5.536696371e-06 | H81: 2.315267533e-09 | I81: 0.08989411347 | J81: 0.0898987014 | K81: =K80*(1-J80) -> 0.3744567009 | L81: 0.3508924811
A82: 66 | C82: 5.365399882e-06 | D82: 1.611705093e-09 | E82: 0.1091444379 | F82: 0.1091498049 | G82: 5.365371094e-06 | H82: 1.611704992e-09 | I82: 0.09840417005 | J82: 0.09840853274 | K82: 0.3407935298 | L82: 0.3173176359
A83: 67 | C83: 5.201415603e-06 | D83: 1.122939849e-09 | E83: 0.1206046038 | F83: 0.1206098064 | G83: 5.201388549e-06 | H83: 1.122939741e-09 | I83: 0.1076245836 | J83: 0.1076287265 | K83: 0.3072565385 | L83: 0.2841077976
A84: 68 | C84: 5.044369257e-06 | D84: 7.831259184e-10 | E84: 0.1332680873 | F84: 0.1332731324 | G84: 5.044343812e-06 | H84: 7.831260085e-10 | I84: 0.1175962588 | J84: 0.1176001871 | K84: 0.2741869086 | L84: 0.2516158064
A85: 69 | C85: 4.893883247e-06 | D85: 5.4667212e-10 | E85: 0.1472612364 | F85: 0.1472661308 | G85: 4.893859297e-06 | H85: 5.46672041e-10 | I85: 0.1283589402 | J85: 0.1283626587 | K85: 0.2419424768 | L85: 0.2202030111
A86: 70 | C86: 4.749605133e-06 | D86: 3.819944259e-10 | E86: 0.1627236662 | F86: 0.1627284162 | G86: 4.749582575e-06 | H86: 3.819944361e-10 | I86: 0.1399504207 | J86: 0.1399539342 | K86: 0.2108860972 | L86: 0.19022606
A87: 71 | C87: 4.611205654e-06 | D87: 2.671991523e-10 | E87: 0.1798096512 | F87: 0.1798142627 | G87: 4.611184391e-06 | H87: 2.671991517e-10 | I87: 0.1524056453 | J87: 0.1524089582 | K87: 0.1813717583 | L87: 0.1620218818
A88: 72 | C88: 4.478376921e-06 | D88: 1.870996578e-10 | E88: 0.1986896646 | F88: 0.1986941431 | G88: 4.478356865e-06 | H88: 1.870996691e-10 | I88: 0.1657557168 | J88: 0.1657588337 | K88: 0.1537290775 | L88: 0.1358917107
A89: 73 | C89: 4.350830779e-06 | D89: 1.311539972e-10 | E89: 0.2195520793 | F89: 0.2195564303 | G89: 4.350811849e-06 | H89: 1.311539766e-10 | I89: 0.1800268173 | J89: 0.1800297427 | K89: 0.1282471249 | L89: 0.1120853171
A90: 74 | C90: 4.228297313e-06 | D90: 9.203867776e-11 | E90: 0.2426050477 | F90: 0.2426092761 | G90: 4.228279435e-06 | H90: 9.203859896e-11 | I90: 0.195239065 | J90: 0.1952418035 | K90: 0.105158828 | L90: 0.09078684858
A91: 75 | C91: 4.110523483e-06 | D91: 6.466186167e-11 | E91: 0.2680785777 | F91: 0.2680826883 | G91: 4.110506587e-06 | H91: 6.466183144e-11 | I91: 0.2114053359 | J91: 0.2114078922 | K91: 0.08462742881 | L91: 0.07210379436
A92: 76 | C92: 3.997271875e-06 | D92: 4.548024642e-11 | E92: 0.2962268283 | F92: 0.2962308257 | G92: 3.997255897e-06 | H92: 4.54802862e-11 | I92: 0.2285300858 | J92: 0.2285324649 | K92: 0.06673652246 | L92: 0.05606049908
A93: 77 | C93: 3.888319563e-06 | D93: 3.202588356e-11 | E93: 0.3273306453 | F93: 0.3273345337 | G93: 3.888304444e-06 | H93: 3.202593746e-11 | I93: 0.2466082181 | J93: 0.2466104252 | K93: 0.05148506048 | L93: 0.04259733363
A94: 78 | C94: 3.783457061e-06 | D94: 2.257819883e-11 | E94: 0.3617003631 | F94: 0.3617041466 | G94: 3.783442747e-06 | H94: 2.257816156e-11 | I94: 0.2656240483 | J94: 0.2656260888 | K94: 0.03878830783 | L94: 0.03157607728
A95: 79 | C95: 3.682487369e-06 | D95: 1.593649323e-11 | E95: 0.3996789012 | F95: 0.3996825837 | G95: 3.682473809e-06 | H95: 1.593658538e-11 | I95: 0.2855504222 | J95: 0.2855523019 | K95: 0.02848512133 | L95: 0.02279132695
A96: 80 | C96: 3.585225091e-06 | D96: 1.126202011e-11 | E96: 0.4416451858 | F96: 0.4416487711 | G96: 3.585212237e-06 | H96: 1.126210236e-11 | I96: 0.3063480461 | J96: 0.3063497711 | K96: 0.02035112936 | L96: 0.01598693469
A97: 81 | C97: 3.491495627e-06 | D97: 7.968270226e-12 | E97: 0.4880179303 | F97: 0.4880214218 | G97: 3.491483437e-06 | H97: 7.968292692e-12 | I97: 0.3279650872 | J97: 0.3279666641 | K97: 0.01411656554 | L97: 0.0108757315
A98: 82 | C98: 3.401134432e-06 | D98: 5.644683728e-12 | E98: 0.539259813 | F98: 0.5392632142 | G98: 3.401122864e-06 | H98: 5.644595902e-12 | I98: 0.3503370961 | J98: 0.3503385316 | K98: 0.009486802632 | L98: 0.00716028788
A99: 83 | C99: 3.313986328e-06 | D99: 4.003557172e-12 | E99: 0.5958820934 | F99: 0.5958854074 | G99: 3.313975346e-06 | H99: 4.003464227e-12 | I99: 0.3733872921 | J99: 0.3733885933 | K99: 0.006163210129 | L99: 0.004552319476
A100: 84 | C100: 3.229904879e-06 | D100: 2.843059103e-12 | E100: 0.6584497132 | F100: 0.6584529431 | G100: 3.229894446e-06 | H100: 2.843059121e-12 | I100: 0.3970272405 | J100: 0.3970284148 | K100: 0.003861937768 | L100: 0.002788628447
A101: 85 | C101: 3.148751804e-06 | D101: 2.021442038e-12 | E101: 0.7275869331 | F101: 0.7275900818 | G101: 3.148741889e-06 | H101: 2.021494083e-12 | I101: 0.4211579279 | J101: 0.421158983 | K101: 0.002328638738 | L101: 0.001642129752
A102: 86 | C102: 3.070396443e-06 | D102: 1.439043597e-12 | E102: 0.803983561 | F102: 0.8039866314 | G102: 3.070387016e-06 | H102: 1.439071085e-12 | I102: 0.4456712236 | J102: 0.4456721671 | K102: 0.001347911615 | L102: 0.0009274029319
A103: 87 | C103: 2.994715262e-06 | D103: 1.025711393e-12 | E103: 0.888401835 | F103: 0.8884048297 | G103: 2.994706294e-06 | H103: 1.02562403e-12 | I103: 0.4704516902 | J103: 0.4704525299 | K103: 0.0007471849247 | L103: 0.000501124398
A104: 88 | C104: 2.92159139e-06 | D104: 7.320081816e-13 | E104: 0.9816840276 | F104: 0.9816869492 | G104: 2.921582855e-06 | H104: 7.320810624e-13 | I104: 0.495378685 | J104: 0.4953794289 | K104: 0.0003956698865 | L104: 0.0002584651808
A105: 89 | C105: 2.850914197e-06 | D105: 5.230543843e-13 | E105: 1.084760851 | F105: 1.084763701 | G105: 2.850906069e-06 | H105: 5.231370892e-13 | I105: 0.5203286748 | J105: 0.5203293307 | K105: 0.0001996631641 | L105: 0.0001269397437
A106: 90 | C106: 2.782578899e-06 | D106: 3.742124532e-13 | E106: 1.19866074 | F106: 1.198663522 | G106: 2.782571157e-06 | H106: 3.741451593e-13 | I106: 0.5451776703 | J106: 0.5451782459 | K106: 9.577256356e-05 | L106: 5.922338082e-05
A107: 91 | C107: 2.716486195e-06 | D107: 2.68058845e-13 | E107: 1.324520118 | F107: 1.324522834 | G107: 2.716478816e-06 | H107: 2.680078381e-13 | I107: 0.5698036801 | J107: 0.5698041829 | K107: 4.355944536e-05 | L107: 2.618519744e-05
A108: 92 | C108: 2.652541925e-06 | D108: 1.922570797e-13 | E108: 1.46359473 | F108: 1.463597382 | G108: 2.652534889e-06 | H108: 1.922906279e-13 | I108: 0.5940890813 | J108: 0.5940895184 | K108: 1.873909119e-05 | L108: 1.094620283e-05
A109: 93 | C109: 2.590656759e-06 | D109: 1.380620665e-13 | E109: 1.617272176 | F109: 1.617274767 | G109: 2.590650047e-06 | H109: 1.381117443e-13 | I109: 0.6179228095 | J109: 0.6179231877 | K109: 7.606393529e-06 | L109: 4.316276674e-06
A110: 94 | C110: 2.5307459e-06 | D110: 9.926714636e-14 | E110: 1.787085755 | F110: 1.787088286 | G110: 2.530739495e-06 | H110: 9.92539384e-14 | I110: 0.6412022851 | J110: 0.6412026109 | K110: 2.906226593e-06 | L110: 1.601790537e-06
A111: 95 | C111: 2.472728817e-06 | D111: 7.14619643e-14 | E111: 1.974729759 | F111: 1.974732232 | G111: 2.472722703e-06 | H111: 7.149836279e-14 | I111: 0.6638350099 | J111: 0.6638352894 | K111: 1.042746514e-06 | L111: 5.581981601e-07
A112: 96 | C112: 2.416528989e-06 | D112: 5.150881039e-14 | E112: 2.182076384 | F112: 2.182078801 | G112: 2.41652315e-06 | H112: 5.151434834e-14 | I112: 0.6857397877 | J112: 0.6857400264 | K112: 3.5053458e-07 | L112: =K113+IF(J112<0.02,0.1,0.3)*(K112-K113) -> 1.822716655e-07
A113: 97 | C113: 2.362073669e-06 | D113: 3.717268959e-14 | E113: 2.411194404 | F113: 2.411196766 | G113: 2.36206809e-06 | H113: 3.708144902e-14 | I113: 0.7068475491 | J113: 0.7068477521 | K113: 1.101589879e-07 | L113: 5.56530448e-08
A114: 98 | C114: 2.309293664e-06 | D114: 2.685968533e-14 | E114: 2.664369817 | F114: 2.664372126 | G114: 2.309288331e-06 | H114: 2.68673972e-14 | I114: 0.7271017801 | J114: 0.7271019521 | K114: 3.229335492e-08 | L114: 1.585696194e-08
A115: 99 | C115: 2.258123131e-06 | D115: 1.943169793e-14 | E115: 2.944128648 | F115: 2.944130906 | G115: 2.258118032e-06 | H115: 1.953992523e-14 | I115: 0.7464585744 | J115: 0.7464587196 | K115: 8.812793517e-09 | L115: 4.207922922e-09
A116: 100 | C116: 2.208499385e-06 | D116: 1.407510886e-14 | E116: 3.253262156 | F116: 3.253264364 | G116: 2.208494507e-06 | H116: 1.398881011e-14 | I116: 0.7648863476 | J116: 0.7648864697 | K116: 2.234406952e-09 | L116: =M117+IF(J116<0.02,0.1,0.3)*(K116-M117) -> 6.703220857e-10
